bitfinex/quotes_SOLUSD_20250118
["timestamp","ask_amount","ask_price","bid_price","bid_amount"]
[1737204553047,23.776884,243.59,243.58,0.063]
[1737204554820,19.36666568,243.62,243.58,4.1683]
[1737204555014,4.1034,243.7,243.58,4.1683]
[1737204555232,19.36666568,243.65,243.59,20.0]
[1737204555438,23.776884,243.64,243.59,20.0]
[1737204555744,19.36666568,243.63,243.58,14.4318]
[1737204557140,19.36666568,243.6,243.58,0.063]
[1737204557333,23.776884,243.59,243.58,0.063]
[1737204558530,7.8042,243.71,243.58,0.063]
[1737204558842,19.36666568,243.61,243.58,0.063]
[1737204559026,4.1034,243.7,243.58,0.063]
[1737204559227,19.36666568,243.61,243.58,0.063]
[1737204559427,23.776884,243.6,243.58,0.063]
[1737204561443,19.36666568,243.59,243.58,0.063]
[1737204562546,43.14354968,243.59,243.58,0.063]
[1737204564145,23.776884,243.59,243.58,0.063]
[1737204565324,27.882084,243.59,243.58,0.063]
[1737204565519,27.882084,243.59,243.56,0.063]
[1737204565719,19.36666568,243.57,243.56,0.063]
[1737204566538,43.14354968,243.57,243.56,0.063]
[1737204568442,47.24904968,243.57,243.56,0.063]
[1737204568648,23.776884,243.56,243.54,0.063]
[1737204568851,19.36666568,243.53,243.47,0.063]
[1737204569030,43.14354968,243.53,243.47,0.063]
[1737204569353,19.36666568,243.53,243.48,4.1071]
[1737204569935,23.776884,243.5,243.48,4.1071]
[1737204570851,23.776884,243.5,243.47,0.063]
[1737204571164,23.776884,243.48,243.47,0.063]
[1737204573130,43.14354968,243.48,243.47,0.063]
[1737204573336,23.776884,243.48,243.47,0.063]
[1737204576731,27.883984,243.48,243.47,0.063]
[1737204576947,23.776884,243.48,243.47,0.063]
[1737204577633,19.36666568,243.55,243.47,30.247]
[1737204577838,19.36666568,243.57,243.51,20.0]
[1737204578348,0.03,243.52,243.51,20.0]
[1737204578556,0.03,243.52,243.5,19.36666568]
[1737204580056,0.03,243.52,243.51,4.1066]
[1737204580855,0.03,243.63,243.53,20.0]
[1737204581147,0.03,243.77,243.62,20.0]
[1737204581352,19.36666568,243.76,243.69,20.0]
[1737204581732,23.776884,243.69,243.59,27.05196568]
[1737204581927,23.776884,243.67,243.59,27.05196568]
[1737204582260,19.36666568,243.7,243.61,19.36666568]
[1737204582957,23.776884,243.69,243.64,20.0]
[1737204583658,23.776884,243.69,243.65,4.1042]
[1737204584239,23.776884,243.69,243.64,20.0]
[1737204584440,23.776884,243.69,243.64,24.1043]
[1737204584645,19.36666568,243.72,243.64,4.1043]
[1737204584955,23.776884,243.69,243.64,20.0]
[1737204585246,19.36666568,243.68,243.64,20.0]
[1737204585450,23.776884,243.67,243.63,4.1045]
[1737204586774,23.776884,243.67,243.62,20.0]
[1737204587360,23.776884,243.65,243.6,4.105]
[1737204588158,23.776884,243.63,243.6,4.105]
[1737204589940,23.776884,243.63,243.59,6.0768]
[1737204590162,23.776884,243.63,243.59,10.1819]
[1737204590539,23.776884,243.6,243.49,10.267]
[1737204590864,19.36666568,243.54,243.49,10.267]
[1737204591163,23.776884,243.55,243.49,10.267]
[1737204591343,19.36666568,243.62,243.57,20.0]
[1737204591838,23.776884,243.63,243.57,20.0]
[1737204592039,23.776884,243.63,243.59,20.0]
[1737204593646,23.776884,243.63,243.6,4.105]
[1737204594464,19.36666568,243.66,243.63,20.0]
[1737204594667,0.03,243.67,243.63,20.0]
[1737204596261,23.806884,243.67,243.63,20.0]
[1737204596470,23.806884,243.67,243.64,4.1044]
[1737204599661,19.36666568,243.72,243.67,20.0]
[1737204599966,19.36666568,243.74,243.67,20.0]
[1737204600267,0.03,243.77,243.73,20.0]
[1737204600565,0.03,243.77,243.75,20.0]
[1737204601179,0.03,243.88,243.76,19.98198081]
[1737204601346,0.0001,243.88,243.86,19.36666568]
[1737204601670,0.0001,243.88,243.87,4.1005]
[1737204603048,0.0001,243.88,243.87,10.6769]
[1737204603760,0.03,244.0,243.9,20.0]
[1737204603965,0.03,244.0,243.99,20.0]
[1737204605072,0.03,244.0,243.99,19.36666568]
[1737204605266,0.03,244.05,243.99,19.36666568]
[1737204605562,0.03,244.05,244.01,19.36666568]
[1737204605872,0.03,244.05,244.03,19.36666568]
[1737204606362,0.03,244.05,243.98,19.36666568]
[1737204606966,23.806884,244.05,243.98,19.36666568]
[1737204607967,23.776884,244.01,243.94,19.36666568]
[1737204608162,23.776884,243.95,243.81,6.5764]
[1737204608348,23.776884,243.87,243.81,6.5764]
[1737204608549,23.776884,243.85,243.77,19.36666568]
[1737204608770,19.36666568,243.9,243.81,19.36666568]
[1737204608976,19.36666568,243.88,243.79,19.36666568]
[1737204609291,23.776884,243.81,243.75,19.36666568]
[1737204609467,23.776884,243.81,243.73,25.94306568]
[1737204609667,23.776884,243.81,243.73,23.46946568]
[1737204609870,23.776884,243.79,243.71,23.46976568]
[1737204610045,19.36666568,243.74,243.62,16.465837]
[1737204610251,19.36666568,243.84,243.62,0.063]
[1737204610252,19.36666568,243.66,243.62,0.063]
[1737204610572,23.776884,243.63,243.62,0.063]
[1737204611158,19.36666568,243.64,243.62,0.063]
[1737204611464,55.33571687,243.63,243.62,0.063]
[1737204611662,1.6092,243.85,243.62,0.063]
[1737204611883,14.3536,243.84,243.62,4.1676]
[1737204612046,4.101,243.84,243.62,4.1676]
[1737204612457,4.101,243.84,243.65,20.0]
[1737204612665,31.55883287,243.75,243.66,31.55883287]
[1737204612865,31.55883287,243.73,243.67,20.0]
[1737204613174,35.65983287,243.84,243.67,20.0]
[1737204613361,31.55883287,243.78,243.7,31.55883287]
[1737204613560,31.55883287,243.8,243.7,31.55883287]
[1737204613764,31.55883287,243.8,243.73,20.0]
[1737204614366,31.55883287,243.8,243.72,31.55883287]
[1737204614559,31.55883287,243.8,243.75,20.0]
[1737204615064,31.55883287,243.85,243.76,31.55883287]
[1737204615268,31.55883287,243.79,243.7,31.55883287]
[1737204615475,23.776884,243.74,243.69,4.1035]
[1737204615780,23.776884,243.74,243.7,20.0]
[1737204617477,23.776884,243.74,243.69,20.0]
[1737204619088,31.55883287,243.75,243.69,20.0]
[1737204619089,23.776884,243.81,243.7,4.1034]
[1737204619261,23.776884,243.76,243.7,4.1034]
[1737204619583,23.776884,243.7,243.67,0.063]
[1737204619881,31.55883287,243.68,243.67,0.063]
[1737204622897,55.33571687,243.7,243.67,0.063]
[1737204623374,1.63375412,243.8,243.67,0.063]
[1737204623375,55.33571687,243.68,243.67,0.063]
[1737204627066,31.55883287,243.72,243.67,20.063]
[1737204627266,31.55883287,243.84,243.68,31.55883287]
[1737204627267,31.55883287,243.76,243.68,31.55883287]
[1737204628175,31.55883287,243.76,243.68,45.92183287]
[1737204628596,31.55883287,243.79,243.7,31.55883287]
[1737204629087,31.55883287,243.71,243.67,0.063]
[1737204629286,31.55883287,243.69,243.67,0.063]
[1737204629597,1.61173233,243.8,243.67,0.063]
[1737204629777,31.55883287,243.69,243.67,0.063]
[1737204630179,23.776884,243.68,243.67,0.063]
[1737204630401,23.776884,243.71,243.67,0.063]
[1737204630590,55.33571687,243.68,243.67,0.063]
[1737204630783,31.55883287,243.7,243.67,0.063]
[1737204631110,31.55883287,243.7,243.67,0.06258693]
[1737204631308,23.776884,243.69,243.67,0.06258693]
[1737204631511,31.55883287,243.7,243.67,0.06258693]
[1737204632081,23.776884,243.69,243.67,0.06258693]
[1737204632280,55.33571687,243.68,243.67,0.06258693]
[1737204633699,23.776884,243.68,243.67,0.06258693]
[1737204633876,55.33571687,243.68,243.67,0.06258693]
[1737204635198,23.776884,243.63,243.62,0.063]
[1737204635513,55.33571687,243.63,243.62,0.063]
[1737204636609,55.33571687,243.63,243.5,38.00823287]
[1737204636906,23.776884,243.57,243.5,38.00823287]
[1737204637408,23.776884,243.55,243.48,31.55883287]
[1737204637589,23.776884,243.55,243.49,4.1069]
[1737204637791,23.776884,243.55,243.48,31.55883287]
[1737204637990,23.776884,243.53,243.47,0.063]
[1737204638509,31.55883287,243.6,243.47,0.063]
[1737204638510,23.776884,243.49,243.47,0.063]
[1737204638802,55.33571687,243.48,243.47,0.063]
[1737204639023,59.44281687,243.48,243.47,0.063]
[1737204639385,47.32558216,243.48,243.47,0.063]
[1737204641110,23.776884,243.47,243.42,0.063]
[1737204641300,23.776884,243.43,243.42,0.063]
[1737204641506,55.38660832,243.43,243.42,0.063]
[1737204645814,23.776884,243.42,243.38,0.063]
[1737204645997,55.38660832,243.41,243.38,0.063]
[1737204647420,27.885284,243.4,243.38,0.063]
[1737204647592,55.38660832,243.39,243.38,0.063]
[1737204648788,31.60972432,243.39,243.38,0.063]
[1737204649195,55.38660832,243.39,243.38,0.063]
[1737204650716,59.49520832,243.39,243.38,0.063]
[1737204654505,23.776884,243.38,243.33,0.063]
[1737204654816,20.0,243.3,243.29,0.063]
[1737204655018,23.776884,243.29,243.22,0.063]
[1737204655198,31.60972432,243.24,243.22,0.063]
[1737204655400,10.2744,243.33,243.22,4.1744]
[1737204655401,31.60972432,243.26,243.22,4.1744]
[1737204655599,31.60972432,243.28,243.22,4.1744]
[1737204655918,31.60972432,243.3,243.22,4.1744]
[1737204656228,31.60972432,243.3,243.23,31.60972432]
[1737204656722,23.776884,243.29,243.22,4.1744]
[1737204657429,23.776884,243.27,243.22,0.063]
[1737204658311,31.60972432,243.3,243.22,4.1744]
[1737204658511,23.776884,243.29,243.22,4.1744]
[1737204659232,31.60972432,243.34,243.25,31.60972432]
[1737204659434,31.60972432,243.35,243.27,31.60972432]
[1737204659935,23.776884,243.32,243.25,20.0]
[1737204660233,23.776884,243.3,243.23,31.60972432]
[1737204660420,23.776884,243.3,243.22,4.1744]
[1737204660732,23.776884,243.28,243.22,4.1744]
[1737204662023,31.60972432,243.31,243.23,31.60972432]
[1737204662522,31.60972432,243.33,243.25,31.60972432]
[1737204662721,31.60972432,243.35,243.25,31.60972432]
[1737204663442,8.2665543,243.45,243.22,14.4531]
[1737204663443,19.45893042,243.38,243.3,6.163]
[1737204663730,19.45893042,243.42,243.35,1.5999]
[1737204663934,19.45893042,243.46,243.37,19.45893042]
[1737204664109,19.45893042,243.46,243.38,4.1088]
[1737204664430,19.45893042,243.5,243.39,19.45893042]
[1737204664834,0.0001,243.41,243.39,19.45893042]
[1737204665034,19.45893042,243.54,243.42,20.0]
[1737204665223,19.45893042,243.56,243.51,20.0]
[1737204665438,19.45893042,243.59,243.51,20.0]
[1737204666120,19.45893042,243.59,243.52,4.1064]
[1737204666318,19.45893042,243.61,243.53,19.45893042]
[1737204666534,23.776884,243.56,243.47,19.45893042]
[1737204666838,19.45893042,243.57,243.47,19.45893042]
[1737204667035,23.776884,243.54,243.47,19.45893042]
[1737204668044,23.776884,243.54,243.48,4.1071]
[1737204668540,19.45893042,243.56,243.48,4.1071]
[1737204669354,23.776884,243.51,243.43,19.45893042]
[1737204669643,23.776884,243.49,243.41,23.56713042]
[1737204669826,23.776884,243.49,243.44,20.0]
[1737204670238,23.776884,243.49,243.41,23.56713042]
[1737204670441,23.776884,243.47,243.41,4.1082]
[1737204670629,19.45893042,243.46,243.37,23.56783042]
[1737204670834,23.776884,243.41,243.37,4.1089]
[1737204671043,23.776884,243.37,243.29,19.45893042]
[1737204671220,23.776884,243.35,243.28,4.1104]
[1737204671416,23.776884,243.33,243.28,4.1104]
[1737204671619,23.776884,243.35,243.28,4.1104]
[1737204671925,23.776884,243.29,243.22,0.063]
[1737204672128,23.776884,243.27,243.22,0.063]
[1737204672545,19.45893042,243.34,243.24,19.45893042]
[1737204672719,19.45893042,243.36,243.26,19.45893042]
[1737204673244,4.1074,243.46,243.22,14.453]
[1737204673245,19.45893042,243.34,243.27,20.0]
[1737204673554,23.776884,243.31,243.22,35.79630537]
[1737204673841,31.62200537,243.34,243.24,31.62200537]
[1737204674037,31.62200537,243.36,243.28,31.62200537]
[1737204674425,23.776884,243.35,243.29,20.0]
[1737204674622,23.776884,243.33,243.29,24.1102]
[1737204675043,23.776884,243.35,243.29,24.1102]
[1737204675422,31.62200537,243.36,243.29,4.1102]
[1737204675631,31.62200537,243.36,243.31,20.0]
[1737204675829,0.03,243.34,243.31,20.0]
[1737204676639,0.03,243.34,243.29,4.1102]
[1737204677151,0.03,243.34,243.31,20.0]
[1737204677447,0.03,243.34,243.3,31.62200537]
[1737204677940,0.03,243.34,243.32,31.62200537]
[1737204678323,0.03,243.34,243.3,31.62200537]
[1737204679047,0.03,243.34,243.29,14.386]
[1737204679048,0.03,243.34,243.33,24.1096]
[1737204679253,0.03,243.34,243.33,4.1096]
[1737204681022,0.03,243.34,243.31,4.1098]
[1737204682631,0.03,243.34,243.29,4.1101]
[1737204683049,0.03,243.34,243.28,31.62200537]
[1737204683250,23.806884,243.34,243.28,4.1104]
[1737204683748,23.806884,243.34,243.26,35.73270537]
[1737204684045,0.03,243.34,243.26,35.73270537]
[1737204684428,23.806884,243.34,243.26,35.73270537]
[1737204684632,23.776884,243.3,243.22,35.79630537]
[1737204684844,23.776884,243.3,243.24,31.62200537]
[1737204685344,31.62200537,243.33,243.24,31.62200537]
[1737204685345,23.776884,243.32,243.24,31.62200537]
[1737204685650,23.776884,243.3,243.23,4.1112]
[1737204685852,31.62200537,243.33,243.24,31.62200537]
[1737204686051,0.03,243.34,243.26,31.62200537]
[1737204686226,0.03,243.34,243.3,31.62200537]
[1737204686754,20.0,243.28,243.22,0.063]
[1737204687051,0.03,243.34,243.22,0.063]
[1737204687256,31.62200537,243.31,243.23,20.0]
[1737204687428,31.62200537,243.29,243.23,20.0]
[1737204687628,31.62200537,243.29,243.26,0.063]
[1737204688126,31.62200537,243.27,243.26,0.063]
[1737204689438,31.62200537,243.29,243.27,4.1106]
[1737204689735,31.62200537,243.31,243.28,23.776884]
[1737204689940,31.62200537,243.31,243.26,0.063]
[1737204690145,31.62200537,243.31,243.26,4.1737]
[1737204690449,31.62200537,243.33,243.27,23.776884]
[1737204691654,31.62200537,243.3,243.28,4.1104]
[1737204692227,31.62200537,243.32,243.28,4.1104]
[1737204693449,19.45932828,243.33,243.28,4.1104]
[1737204694832,0.03,243.34,243.3,23.776884]
[1737204695149,0.03,243.34,243.33,43.776884]
[1737204695957,0.03,243.34,243.26,0.063]
[1737204695958,23.59882828,243.34,243.26,0.063]
[1737204696251,19.45932828,243.29,243.26,0.063]
[1737204699060,19.45932828,243.27,243.26,0.063]
[1737204701141,19.45932828,243.29,243.26,0.063]
[1737204701342,19.45932828,243.29,243.27,23.776884]
[1737204701541,19.45932828,243.29,243.26,0.063]
[1737204702257,19.45932828,243.27,243.26,0.063]
[1737204706256,23.56992828,243.27,243.26,0.063]
[1737204706833,19.45932828,243.27,243.26,0.063]
[1737204707758,20.0,243.24,243.23,0.063]
[1737204707961,20.0,243.24,243.13,0.063]
[1737204707962,20.0,243.21,243.13,0.063]
[1737204708140,19.45932828,243.14,243.13,0.063]
[1737204709465,19.45932828,243.14,243.01,0.063]
[1737204709466,20.0,243.11,243.01,0.063]
[1737204709651,19.45932828,243.05,243.01,0.063]
[1737204710245,19.45932828,243.05,243.01,4.1779]
[1737204710543,19.45932828,243.05,243.01,0.063]
[1737204717174,43.23621228,243.05,243.01,0.063]
[1737204717351,58.91865656,243.02,242.98,0.063]
[1737204717551,19.45932828,242.99,242.97,0.063]
[1737204720768,23.57472828,242.99,242.97,0.063]
[1737204721173,19.45932828,242.99,242.97,0.063]
[1737204721350,19.45932828,243.01,242.97,0.063]
[1737204721669,19.45932828,243.08,243.0,23.776884]
[1737204721905,19.45932828,243.12,243.06,23.776884]
[1737204722179,23.57052828,243.24,243.07,7.9309]
[1737204722359,20.0,243.21,243.07,7.9309]
[1737204722751,23.57052828,243.24,243.07,7.9309]
[1737204723061,20.0,243.21,243.07,7.9309]
[1737204723368,19.45932828,243.08,243.01,20.0]
[1737204723546,19.45932828,243.06,242.99,4.1153]
[1737204723960,19.45932828,243.06,243.0,23.776884]
[1737204724368,19.45932828,243.1,243.03,20.0]
[1737204724747,19.45932828,243.1,243.04,23.776884]
[1737204724953,19.45932828,243.1,243.03,20.0]
[1737204725780,19.52232828,243.12,243.05,20.0]
[1737204726886,19.52232828,243.12,243.06,4.1142]
[1737204728769,19.52232828,243.12,243.04,4.1144]
[1737204728770,19.45932828,243.1,243.04,4.1144]
[1737204729659,19.45932828,243.08,243.04,4.1144]
[1737204730369,19.45932828,243.1,243.04,4.1144]
[1737204730974,19.45932828,243.1,243.05,23.776884]
[1737204731668,19.45932828,243.1,243.04,24.1144]
[1737204731888,19.45932828,243.08,243.03,20.0]
[1737204732575,19.45932828,243.06,242.98,6.3476]
[1737204732781,19.45932828,243.02,242.98,10.4631]
[1737204732977,19.45932828,243.04,242.98,10.4631]
[1737204733484,19.45932828,243.02,242.98,6.3476]
[1737204734780,19.45932828,243.02,242.98,10.4631]
[1737204735480,19.45932828,242.99,242.97,0.063]
[1737204736575,19.45932828,242.99,242.98,0.03]
[1737204740686,23.57462828,243.0,242.98,0.03]
[1737204740991,43.03395656,243.0,242.98,0.03]
[1737204741294,19.45932828,243.0,242.98,0.03]
[1737204741876,38.91865656,243.0,242.98,0.03]
[1737204742093,43.03385656,243.0,242.98,0.03]
[1737204742266,19.45932828,243.0,242.98,0.03]
[1737204743866,19.45932828,243.02,242.98,4.1455]
[1737204744069,19.45932828,243.02,242.99,23.776884]
[1737204744379,19.45932828,243.04,242.99,23.776884]
[1737204744867,19.45932828,243.04,243.0,4.1152]
[1737204745073,19.45932828,243.02,243.0,4.1152]
[1737204745968,19.45932828,243.02,242.98,0.03]
[1737204746170,19.45932828,243.0,242.98,0.03]
[1737204750089,19.45932828,243.0,242.9,20.0]
[1737204750395,19.45932828,242.96,242.91,23.776884]
[1737204751995,0.063,243.04,242.93,23.776884]
[1737204752175,19.45932828,243.01,242.93,23.776884]
[1737204753396,19.45932828,243.01,242.95,23.776884]
[1737204754292,19.45932828,242.97,242.94,4.1162]
[1737204754502,19.45932828,242.95,242.94,4.1162]
[1737204755893,19.45932828,242.95,242.92,43.776884]
[1737204756101,19.45932828,242.95,242.92,23.776884]
[1737204756478,19.45932828,242.95,242.89,27.893884]
[1737204756801,19.45932828,242.95,242.92,23.776884]
[1737204757697,19.45932828,242.95,242.88,29.75212828]
[1737204757891,19.45932828,242.95,242.89,27.893884]
[1737204758488,19.45932828,242.97,242.9,43.23621228]
[1737204758690,19.45932828,242.99,242.94,23.776884]
[1737204759207,19.45932828,242.99,242.93,20.0]
[1737204759374,12.1964646,242.98,242.92,20.0]
[1737204759576,12.1964646,242.98,242.94,23.776884]
[1737204760290,12.1964646,242.98,242.95,4.116]
[1737204760582,12.1964646,243.02,242.96,23.776884]
[1737204761007,12.2594646,243.04,242.96,23.776884]
[1737204761313,12.1964646,243.02,242.96,23.776884]
[1737204762206,12.1964646,243.02,242.97,4.1157]
[1737204762900,12.1964646,243.02,242.98,23.776884]
[1737204763301,12.1964646,243.02,242.96,27.892784]
[1737204765607,12.2594646,243.04,242.96,27.892784]
[1737204766498,12.2594646,243.04,242.99,20.0]
[1737204766698,0.063,243.04,243.02,23.776884]
[1737204768013,0.063,243.04,242.96,4.1159]
[1737204768303,12.1964646,243.0,242.96,4.1159]
[1737204768493,12.1964646,242.98,242.92,1.6403]
[1737204768812,12.1964646,242.96,242.92,1.6403]
[1737204768986,12.1964646,242.96,242.92,21.6403]
[1737204769187,12.1964646,242.96,242.92,1.6403]
[1737204769381,12.1964646,242.96,242.91,4.1167]
[1737204772097,0.063,243.04,242.96,23.776884]
[1737204772289,0.063,243.04,242.96,35.9733486]
[1737204772618,12.1964646,243.01,242.96,23.776884]
[1737204773910,12.1964646,243.01,242.95,20.0]
[1737204774211,12.1964646,243.01,242.96,4.1159]
[1737204774789,12.1964646,243.01,242.96,27.892784]
[1737204774999,12.1964646,243.01,242.97,23.776884]
[1737204775201,12.1964646,243.03,242.96,38.182484]
[1737204775405,12.1964646,243.03,242.96,50.3789486]
[1737204775709,0.063,243.04,242.96,4.1159]
[1737204776016,12.1964646,243.0,242.96,4.1159]
[1737204779313,12.1964646,243.0,242.89,6.2773]
[1737204779314,12.1964646,242.98,242.89,6.2773]
[1737204779516,12.1964646,242.96,242.89,6.2773]
[1737204780519,12.1964646,242.96,242.9,27.893784]
[1737204782418,12.1964646,242.96,242.9,38.186084]
[1737204783110,0.063,243.04,242.95,20.0]
[1737204783291,12.2594646,243.04,242.96,23.776884]
[1737204784110,0.063,243.04,242.97,14.405]
[1737204784312,0.063,243.04,243.02,20.0]
[1737204784619,12.2594646,243.04,242.97,4.1157]
[1737204784796,12.1964646,243.02,242.97,4.1157]
[1737204785207,12.1964646,243.02,242.97,24.1157]
[1737204785512,12.1964646,243.0,242.97,4.1157]
[1737204786309,12.1964646,243.0,242.94,23.776884]
[1737204787417,12.1964646,243.0,242.96,23.776884]
[1737204788303,12.1964646,243.0,242.95,24.116]
[1737204788491,12.1964646,242.98,242.95,24.116]
[1737204789316,12.1964646,242.98,242.95,4.116]
[1737204789503,12.1964646,242.98,242.93,43.776884]
[1737204790018,12.1964646,243.0,242.93,43.776884]
[1737204790314,12.1964646,243.0,242.93,23.776884]
[1737204790612,0.063,243.04,242.99,12.1964646]
[1737204790812,0.063,243.04,243.03,43.776884]
[1737204791822,0.063,243.04,243.03,47.891584]
[1737204792819,0.063,243.04,243.03,47.74083567]
[1737204793019,12.2594646,243.12,243.04,23.776884]
[1737204793198,12.1964646,243.06,243.01,4.1149]
[1737204793399,12.1964646,243.04,243.01,4.1149]
[1737204793824,12.1964646,243.04,242.98,4.1155]
[1737204794412,12.1964646,243.04,242.99,23.776884]
[1737204795106,16.3726646,243.12,243.01,23.776884]
[1737204795107,12.1964646,243.06,243.01,23.776884]
[1737204795517,12.1964646,243.08,243.01,23.776884]
[1737204796522,12.1964646,243.1,243.01,35.9733486]
[1737204796727,0.063,243.12,243.03,12.1964646]
[1737204796728,0.063,243.06,243.03,12.1964646]
[1737204797025,0.063,243.06,243.0,14.4032]
[1737204797821,0.063,243.06,243.01,23.776884]
[1737204798026,0.063,243.06,243.05,55.9733486]
[1737204798329,0.063,243.06,243.05,43.776884]
[1737204798525,0.063,243.06,243.05,20.0]
[1737204798715,0.063,243.06,243.03,12.1964646]
[1737204798716,0.063,243.06,243.04,20.0]
[1737204799109,0.063,243.06,243.0,4.1152]
[1737204799829,0.063,243.06,243.01,23.776884]
[1737204800229,0.063,243.06,243.05,23.776884]
[1737204800523,0.063,243.06,243.05,35.9733486]
[1737204801106,0.063,243.12,243.05,35.9733486]
[1737204801107,0.063,243.12,243.11,20.0]
[1737204801321,0.063,243.12,243.11,60.0866486]
[1737204801521,0.0001,243.12,243.11,60.0866486]
[1737204802330,0.0001,243.12,243.11,60.70327076]
[1737204802525,0.063,243.23,243.16,23.776884]
[1737204803132,0.063,243.23,243.2,23.776884]
[1737204803521,0.063,243.23,243.21,4.1116]
[1737204803714,0.063,243.23,243.22,23.776884]
[1737204804830,0.063,243.23,243.21,4.1116]
[1737204806033,0.063,243.23,243.22,23.776884]
[1737204807131,0.063,243.23,243.15,12.1964646]
[1737204807317,12.1964646,243.22,243.15,12.1964646]
[1737204807519,0.063,243.23,243.15,12.1964646]
[1737204807520,0.063,243.23,243.17,12.1964646]
[1737204807720,0.063,243.23,243.18,23.776884]
[1737204809030,12.1964646,243.19,243.14,4.1127]
[1737204809640,12.1964646,243.19,243.13,20.0]
[1737204810137,12.1964646,243.22,243.17,20.0]
[1737204810812,0.063,243.23,243.18,23.776884]
[1737204811217,0.063,243.23,243.21,23.776884]
[1737204812920,0.063,243.23,243.22,27.888384]
[1737204813429,0.063,243.23,243.22,4.1115]
[1737204813634,0.063,243.23,243.22,24.1115]
[1737204815738,0.03,243.27,243.25,23.776884]
[1737204816338,0.03,243.27,243.24,32.1964646]
[1737204816642,0.03,243.27,243.26,20.0]
[1737204816817,0.03,243.27,243.22,16.3079646]
[1737204817021,0.03,243.27,243.23,23.776884]
[1737204817226,0.03,243.27,243.24,12.1964646]
[1737204817437,0.03,243.27,243.26,35.9733486]
[1737204817841,0.03,243.27,243.26,40.0841486]
[1737204818645,0.03,243.27,243.26,16.3072646]
[1737204819249,0.03,243.27,243.24,16.3074646]
[1737204819740,12.1964646,243.26,243.14,12.90747348]
[1737204819943,12.1964646,243.24,243.15,12.1964646]
[1737204820245,12.1964646,243.24,243.15,16.3089646]
[1737204820441,12.1964646,243.24,243.15,4.1125]
[1737204820622,12.1964646,243.22,243.13,12.1964646]
[1737204821543,0.03,243.27,243.22,23.776884]
[1737204821718,0.03,243.27,243.25,12.1964646]
[1737204821927,0.03,243.27,243.26,4.1108]
[1737204824138,0.03,243.27,243.26,40.0841486]
[1737204824731,0.0001,243.27,243.26,53.76616475]
[1737204825049,0.0001,243.27,243.26,41.56970015]
[1737204825225,0.0001,243.27,243.26,4.1108]
[1737204825640,0.0001,243.27,243.24,27.887884]
[1737204827724,0.0001,243.27,243.25,16.3073646]
[1737204827929,0.0001,243.27,243.26,23.776884]
[1737204828544,0.0001,243.27,243.26,23.27878704]
[1737204829850,0.0001,243.27,243.26,49.38342712]
[1737204832447,0.0001,243.31,243.3,23.776884]
[1737204832647,0.03,243.34,243.3,23.776884]
[1737204832648,0.0001,243.34,243.33,43.776884]
[1737204832825,0.0001,243.34,243.33,68.39568363]
[1737204833028,0.0001,243.34,243.33,82.07769978]
[1737204833326,0.0001,243.34,243.33,88.72373453]
[1737204833826,0.0001,243.37,243.36,43.776884]
[1737204834028,0.063,243.48,243.4,20.0]
[1737204834235,0.063,243.48,243.41,35.58309462]
[1737204834542,0.063,243.48,243.46,12.1964646]
[1737204834846,0.063,243.48,243.46,16.3037646]
[1737204835050,0.063,243.48,243.47,23.776884]
[1737204835946,0.063,243.48,243.47,35.9733486]
[1737204836255,12.1964646,243.61,243.5,20.0]
[1737204836431,0.03,243.66,243.61,20.0]
[1737204836636,0.03,243.66,243.65,12.1964646]
[1737204836849,0.03,243.66,243.65,35.9733486]
[1737204837154,0.03,243.66,243.65,40.0775486]
[1737204837353,0.0001,243.66,243.65,40.0775486]